[Event "Late-Titled-Tuesday-Blitz-April-02-2024"]
[Site "Chess.com"]
[Date "2024.04.02"]
[Round "4"]
[White "Firouzja2003"]
[Black "vladislavkovalev"]
[Result "1-0"]
[WhiteElo "3099"]
[BlackElo "2878"]
[TimeControl "180+1"]
[EndTime "14:37:11 PDT"]
[Termination "Firouzja2003 won on time"]

1. e4 {[%clk 0:03:00.9]} 1... e5 {[%clk 0:02:58.5]} 2. Bb5 {[%clk 0:02:57.2]}
2... c6 {[%clk 0:02:57]} 3. Ba4 {[%clk 0:02:57.1]} 3... Nf6 {[%clk 0:02:55.5]}
4. Nc3 {[%clk 0:02:53.9]} 4... b5 {[%clk 0:02:45]} 5. Bb3 {[%clk 0:02:53.9]}
5... b4 {[%clk 0:02:41.5]} 6. Na4 {[%clk 0:02:53.5]} 6... Nxe4 {[%clk
0:02:40.5]} 7. Qe2 {[%clk 0:02:48.5]} 7... d5 {[%clk 0:02:33.3]} 8. d3 {[%clk
0:02:48.6]} 8... Nf6 {[%clk 0:02:25.2]} 9. Qxe5+ {[%clk 0:02:48.3]} 9... Qe7
{[%clk 0:02:12.2]} 10. Nf3 {[%clk 0:02:47.4]} 10... Nbd7 {[%clk 0:02:03.5]} 11.
Qxe7+ {[%clk 0:02:45.6]} 11... Bxe7 {[%clk 0:02:04.4]} 12. O-O {[%clk
0:02:45.6]} 12... O-O {[%clk 0:01:58.4]} 13. Nd4 {[%clk 0:02:45.6]} 13... Bb7
{[%clk 0:01:43]} 14. Nf5 {[%clk 0:02:44.7]} 14... Rfe8 {[%clk 0:01:41.6]} 15.
Nxe7+ {[%clk 0:02:41.5]} 15... Rxe7 {[%clk 0:01:42.5]} 16. Be3 {[%clk
0:02:37.4]} 16... a5 {[%clk 0:01:16.3]} 17. a3 {[%clk 0:02:34]} 17... Ree8
{[%clk 0:01:06.7]} 18. axb4 {[%clk 0:02:23.3]} 18... axb4 {[%clk 0:01:07.6]} 19.
h3 {[%clk 0:02:23.7]} 19... h6 {[%clk 0:00:44.5]} 20. Bd4 {[%clk 0:02:21]} 20...
Ra5 {[%clk 0:00:36.4]} 21. Nb6 {[%clk 0:02:13]} 21... Rxa1 {[%clk 0:00:21.3]}
22. Rxa1 {[%clk 0:02:13.9]} 22... c5 {[%clk 0:00:22]} 23. Ra7 {[%clk 0:01:15.8]}
23... cxd4 {[%clk 0:00:20.7]} 24. Nxd7 {[%clk 0:01:15.9]} 24... Nxd7 {[%clk
0:00:21.1]} 25. Rxb7 {[%clk 0:01:16.3]} 25... Nc5 {[%clk 0:00:21.8]} 26. Rxb4
{[%clk 0:01:16.4]} 26... Nxb3 {[%clk 0:00:21.7]} 27. Rxb3 {[%clk 0:01:03.7]}
27... Re1+ {[%clk 0:00:22.1]} 28. Kh2 {[%clk 0:01:04.3]} 28... Re2 {[%clk
0:00:22.9]} 29. Rb8+ {[%clk 0:01:04.6]} 29... Kh7 {[%clk 0:00:23]} 30. Rc8
{[%clk 0:01:05.5]} 30... Rxf2 {[%clk 0:00:23.2]} 31. Rc5 {[%clk 0:01:06.1]}
31... f5 {[%clk 0:00:20.8]} 32. Kg3 {[%clk 0:00:53.1]} 32... Rd2 {[%clk
0:00:16]} 33. b4 {[%clk 0:00:53.6]} 33... g5 {[%clk 0:00:15.3]} 34. b5 {[%clk
0:00:54]} 34... Rd1 {[%clk 0:00:06]} 35. Rxd5 {[%clk 0:00:50.3]} 35... f4+
{[%clk 0:00:05.8]} 36. Kf3 {[%clk 0:00:43]} 36... Rb1 {[%clk 0:00:06.1]} 37. Kg4
{[%clk 0:00:39.6]} 37... Rb2 {[%clk 0:00:03.7]} 38. Rc5 {[%clk 0:00:36.8]} 38...
Kg6 {[%clk 0:00:02]} 39. Rc6+ {[%clk 0:00:36.9]} 39... Kf7 {[%clk 0:00:02.7]}
40. b6 {[%clk 0:00:37.4]} 1-0

[Event "Late-Titled-Tuesday-Blitz-April-02-2024"]
[Site "Chess.com"]
[Date "2024.04.02"]
[Round "4"]
[White "LiemLe"]
[Black "ameetghasi100"]
[Result "1-0"]
[WhiteElo "3027"]
[BlackElo "2801"]
[TimeControl "180+1"]
[EndTime "14:37:12 PDT"]
[Termination "LiemLe won by resignation"]

1. Nf3 {[%clk 0:03:00.9]} 1... g6 {[%clk 0:02:58.5]} 2. c4 {[%clk 0:02:56.6]}
2... Bg7 {[%clk 0:02:59.4]} 3. d4 {[%clk 0:02:55.3]} 3... Nf6 {[%clk 0:03:00.3]}
4. Nc3 {[%clk 0:02:55.3]} 4... O-O {[%clk 0:03:01.2]} 5. e4 {[%clk 0:02:55.9]}
5... d6 {[%clk 0:03:02.1]} 6. Be2 {[%clk 0:02:56.2]} 6... e5 {[%clk 0:03:01.3]}
7. O-O {[%clk 0:02:56.3]} 7... Bg4 {[%clk 0:03:01.8]} 8. d5 {[%clk 0:02:45.8]}
8... a5 {[%clk 0:03:01.3]} 9. Be3 {[%clk 0:02:41.5]} 9... Bxf3 {[%clk
0:03:01.3]} 10. Bxf3 {[%clk 0:02:41.8]} 10... Na6 {[%clk 0:03:02.2]} 11. a3
{[%clk 0:02:38.3]} 11... Nc5 {[%clk 0:03:00.2]} 12. Qc2 {[%clk 0:02:37.1]} 12...
a4 {[%clk 0:02:56.6]} 13. Bxc5 {[%clk 0:02:36.9]} 13... dxc5 {[%clk 0:02:57.5]}
14. Nxa4 {[%clk 0:02:37.6]} 14... Qe7 {[%clk 0:02:56.7]} 15. Rab1 {[%clk
0:02:25.5]} 15... Ra7 {[%clk 0:02:47.7]} 16. b4 {[%clk 0:02:24.6]} 16... cxb4
{[%clk 0:02:48.6]} 17. axb4 {[%clk 0:02:25.2]} 17... Rfa8 {[%clk 0:02:49.2]} 18.
Nc3 {[%clk 0:02:24.4]} 18... b6 {[%clk 0:02:43.5]} 19. Rfd1 {[%clk 0:02:23.1]}
19... Ne8 {[%clk 0:02:39]} 20. g3 {[%clk 0:02:13.8]} 20... h5 {[%clk 0:02:38.4]}
21. h4 {[%clk 0:02:13.6]} 21... Ra3 {[%clk 0:02:31.9]} 22. Bg2 {[%clk
0:02:08.8]} 22... Bf8 {[%clk 0:02:25]} 23. Rb2 {[%clk 0:02:08.5]} 23... Qd7
{[%clk 0:02:19.4]} 24. Nb1 {[%clk 0:01:58.3]} 24... R3a4 {[%clk 0:02:18.1]} 25.
c5 {[%clk 0:01:58.4]} 25... Nf6 {[%clk 0:02:02.4]} 26. Nc3 {[%clk 0:01:38.7]}
26... Ra3 {[%clk 0:02:00.2]} 27. c6 {[%clk 0:01:38.2]} 27... Qd8 {[%clk
0:01:57.2]} 28. Nb5 {[%clk 0:01:37.4]} 28... R3a4 {[%clk 0:01:43.8]} 29. d6
{[%clk 0:01:31.5]} 29... Bxd6 {[%clk 0:01:14.6]} 30. Bh3 {[%clk 0:01:23.9]}
30... Ra1 {[%clk 0:01:04.9]} 31. Rbb1 {[%clk 0:01:24.2]} 31... Rxb1 {[%clk
0:01:05]} 32. Qxb1 {[%clk 0:01:25.1]} 32... Ne8 {[%clk 0:00:42.8]} 33. Bd7
{[%clk 0:01:24.2]} 33... Qe7 {[%clk 0:00:12.4]} 34. Bxe8 {[%clk 0:01:23.6]}
34... Rxe8 {[%clk 0:00:11.7]} 35. Nxd6 {[%clk 0:01:23.9]} 35... cxd6 {[%clk
0:00:12.6]} 36. Qd3 {[%clk 0:01:23.4]} 36... Rd8 {[%clk 0:00:12.5]} 37. Qa6
{[%clk 0:01:18.9]} 37... Qc7 {[%clk 0:00:12.3]} 38. b5 {[%clk 0:01:19.3]} 38...
Kf8 {[%clk 0:00:12.2]} 39. Ra1 {[%clk 0:01:18.8]} 39... d5 {[%clk 0:00:12.5]}
40. Qa7 {[%clk 0:01:15.2]} 40... Qd6 {[%clk 0:00:11.4]} 41. Qxb6 {[%clk
0:01:07.7]} 41... dxe4 {[%clk 0:00:11.5]} 42. Rc1 {[%clk 0:01:04.7]} 42... Ke7
{[%clk 0:00:10.9]} 43. Qe3 {[%clk 0:01:02.2]} 43... Qd5 {[%clk 0:00:08.2]} 44.
b6 {[%clk 0:01:01.9]} 44... Rd6 {[%clk 0:00:07.4]} 45. b7 {[%clk 0:01:01.4]}
45... Rxc6 {[%clk 0:00:05.8]} 46. b8=Q {[%clk 0:01:01.5]} 46... Rxc1+ {[%clk
0:00:05.2]} 47. Qxc1 {[%clk 0:01:02.4]} 47... e3 {[%clk 0:00:05.7]} 48. Qa7+
{[%clk 0:01:01.9]} 48... Kf6 {[%clk 0:00:05.9]} 49. Qaxe3 {[%clk 0:01:01.9]}
49... Kg7 {[%clk 0:00:06.5]} 50. Qc7 {[%clk 0:00:58.4]} 1-0

[Event "Late-Titled-Tuesday-Blitz-April-02-2024"]
[Site "Chess.com"]
[Date "2024.04.02"]
[Round "4"]
[White "VinzentSpitzl"]
[Black "Hirna2005"]
[Result "0-1"]
[WhiteElo "2524"]
[BlackElo "2328"]
[TimeControl "180+1"]
[EndTime "14:37:17 PDT"]
[Termination "Hirna2005 won on time"]

1. e4 {[%clk 0:03:00.9]} 1... g6 {[%clk 0:02:59.8]} 2. d4 {[%clk 0:03:00.6]}
2... Bg7 {[%clk 0:03:00.3]} 3. Nc3 {[%clk 0:03:01.2]} 3... d6 {[%clk 0:03:00.8]}
4. Be3 {[%clk 0:03:01.6]} 4... a6 {[%clk 0:03:00.6]} 5. a4 {[%clk 0:03:01.2]}
5... Nc6 {[%clk 0:03:00.4]} 6. h3 {[%clk 0:03:00.9]} 6... e5 {[%clk 0:03:00.1]}
7. Nge2 {[%clk 0:03:00.7]} 7... f5 {[%clk 0:02:50.2]} 8. dxe5 {[%clk 0:02:41.5]}
8... Nxe5 {[%clk 0:02:46.2]} 9. exf5 {[%clk 0:02:41.3]} 9... Bxf5 {[%clk
0:02:45.2]} 10. Nd4 {[%clk 0:02:41]} 10... Bd7 {[%clk 0:02:43]} 11. Be2 {[%clk
0:02:40.6]} 11... Ne7 {[%clk 0:02:39.5]} 12. O-O {[%clk 0:02:35.9]} 12... O-O
{[%clk 0:02:39]} 13. Qd2 {[%clk 0:02:30.7]} 13... Nf5 {[%clk 0:02:35.9]} 14.
Nxf5 {[%clk 0:02:18.8]} 14... Bxf5 {[%clk 0:02:35.8]} 15. Rae1 {[%clk
0:02:17.5]} 15... Be6 {[%clk 0:02:18.4]} 16. Nd5 {[%clk 0:02:11.4]} 16... Qd7
{[%clk 0:02:13.4]} 17. f4 {[%clk 0:02:06]} 17... Nf7 {[%clk 0:02:01.6]} 18. b3
{[%clk 0:01:57.4]} 18... Rae8 {[%clk 0:01:53.8]} 19. Bf3 {[%clk 0:01:52.3]}
19... c6 {[%clk 0:01:47.1]} 20. Nb6 {[%clk 0:01:40.1]} 20... Qd8 {[%clk
0:01:47.4]} 21. a5 {[%clk 0:01:34.7]} 21... d5 {[%clk 0:01:39.3]} 22. Na4 {[%clk
0:01:27]} 22... Nd6 {[%clk 0:01:36.7]} 23. Bb6 {[%clk 0:01:19]} 23... Qc8 {[%clk
0:01:32.9]} 24. Nc5 {[%clk 0:01:19]} 24... Bf5 {[%clk 0:01:30.4]} 25. Rxe8
{[%clk 0:01:08.5]} 25... Rxe8 {[%clk 0:01:30]} 26. Re1 {[%clk 0:01:08.9]} 26...
h5 {[%clk 0:01:17.3]} 27. Kh2 {[%clk 0:01:00.4]} 27... Kh7 {[%clk 0:01:10.7]}
28. c4 {[%clk 0:00:48.8]} 28... Ne4 {[%clk 0:01:05.9]} 29. Bxe4 {[%clk
0:00:20.4]} 29... Bxe4 {[%clk 0:00:55.7]} 30. Nxe4 {[%clk 0:00:20.1]} 30... dxe4
{[%clk 0:00:55.6]} 31. Qe3 {[%clk 0:00:12]} 31... Qf5 {[%clk 0:00:54.1]} 32. Rd1
{[%clk 0:00:11.8]} 32... Re7 {[%clk 0:00:51.1]} 33. Rd8 {[%clk 0:00:09.3]} 33...
Bh6 {[%clk 0:00:48.6]} 34. g3 {[%clk 0:00:06.6]} 34... h4 {[%clk 0:00:47.7]} 35.
Bd4 {[%clk 0:00:07.1]} 35... Bg7 {[%clk 0:00:35.8]} 36. g4 {[%clk 0:00:05.9]}
36... Bxd4 {[%clk 0:00:33.3]} 37. Rxd4 {[%clk 0:00:03.3]} 37... Qe6 {[%clk
0:00:29.9]} 0-1

[Event "Late-Titled-Tuesday-Blitz-April-02-2024"]
[Site "Chess.com"]
[Date "2024.04.02"]
[Round "4"]
[White "APOKALIPSA13"]
[Black "Sesleria"]
[Result "1-0"]
[WhiteElo "2291"]
[BlackElo "2150"]
[TimeControl "180+1"]
[EndTime "14:37:17 PDT"]
[Termination "APOKALIPSA13 won by resignation"]

1. e4 {[%clk 0:03:00.2]} 1... c5 {[%clk 0:02:58.6]} 2. Nf3 {[%clk 0:03:01.1]}
2... e6 {[%clk 0:02:58.3]} 3. d4 {[%clk 0:03:02]} 3... cxd4 {[%clk 0:02:58.7]}
4. Nxd4 {[%clk 0:03:02.8]} 4... a6 {[%clk 0:02:58.9]} 5. Nc3 {[%clk 0:03:03.3]}
5... Qc7 {[%clk 0:02:59]} 6. Be3 {[%clk 0:03:02.3]} 6... Nf6 {[%clk 0:02:56.4]}
7. h3 {[%clk 0:03:01.2]} 7... b5 {[%clk 0:02:54.8]} 8. Bd3 {[%clk 0:03:00.1]}
8... Bb7 {[%clk 0:02:54.7]} 9. a3 {[%clk 0:02:49.7]} 9... d5 {[%clk 0:02:52.1]}
10. Ncxb5 {[%clk 0:02:23.6]} 10... axb5 {[%clk 0:02:48.8]} 11. Nxb5 {[%clk
0:02:17.4]} 11... Qa5+ {[%clk 0:02:31.6]} 12. Bd2 {[%clk 0:02:01.5]} 12... Qb6
{[%clk 0:02:31]} 13. Bf4 {[%clk 0:02:00]} 13... Na6 {[%clk 0:02:10.7]} 14. e5
{[%clk 0:01:54.2]} 14... Ne4 {[%clk 0:01:45.6]} 15. O-O {[%clk 0:01:43.4]} 15...
Nac5 {[%clk 0:01:38.8]} 16. Be3 {[%clk 0:01:39.5]} 16... Qd8 {[%clk 0:01:26.2]}
17. Qg4 {[%clk 0:01:23.5]} 17... h5 {[%clk 0:01:13.8]} 18. Qf4 {[%clk 0:01:17]}
18... g5 {[%clk 0:00:58.2]} 19. Qh2 {[%clk 0:01:14.6]} 19... h4 {[%clk
0:00:48.2]} 20. b4 {[%clk 0:01:10.4]} 20... Nxd3 {[%clk 0:00:47.8]} 21. cxd3
{[%clk 0:01:11.3]} 21... Ba6 {[%clk 0:00:37.4]} 22. a4 {[%clk 0:01:02.8]} 22...
Bxb5 {[%clk 0:00:36.2]} 23. axb5 {[%clk 0:01:03.7]} 23... Rxa1 {[%clk
0:00:32.8]} 24. Rxa1 {[%clk 0:01:04.6]} 24... Nc3 {[%clk 0:00:31.2]} 25. b6
{[%clk 0:01:04.2]} 25... Be7 {[%clk 0:00:20.3]} 26. b7 {[%clk 0:01:01.4]} 26...
O-O {[%clk 0:00:20.2]} 27. Ra8 {[%clk 0:00:50.8]} 27... Qc7 {[%clk 0:00:20.4]}
28. Bc5 {[%clk 0:00:39.4]} 28... Ne4 {[%clk 0:00:18.2]} 29. dxe4 {[%clk
0:00:38]} 29... Bxc5 {[%clk 0:00:18.3]} 30. bxc5 {[%clk 0:00:37.2]} 30... Qxb7
{[%clk 0:00:18.8]} 31. Rxf8+ {[%clk 0:00:35.5]} 31... Kxf8 {[%clk 0:00:19.7]}
32. g3 {[%clk 0:00:30.9]} 32... Qb1+ {[%clk 0:00:19.1]} 33. Kg2 {[%clk
0:00:29.9]} 33... Qxe4+ {[%clk 0:00:20]} 34. Kf1 {[%clk 0:00:28.6]} 34... Qxe5
{[%clk 0:00:20.1]} 35. c6 {[%clk 0:00:24.5]} 35... Ke7 {[%clk 0:00:17]} 36. Qg2
{[%clk 0:00:22.3]} 36... Qe4 {[%clk 0:00:15.6]} 37. Qxe4 {[%clk 0:00:20.7]}
37... d4 {[%clk 0:00:15.1]} 38. Qxd4 {[%clk 0:00:20.4]} 1-0

[Event "Late-Titled-Tuesday-Blitz-April-02-2024"]
[Site "Chess.com"]
[Date "2024.04.02"]
[Round "4"]
[White "SmirnovTimofey2000"]
[Black "NowInChess"]
[Result "0-1"]
[WhiteElo "1938"]
[BlackElo "2242"]
[TimeControl "180+1"]
[EndTime "14:37:17 PDT"]
[Termination "NowInChess won on time"]

1. e4 {[%clk 0:02:39.3]} 1... e6 {[%clk 0:02:58.9]} 2. d4 {[%clk 0:02:37.9]}
2... d5 {[%clk 0:02:59.2]} 3. Nc3 {[%clk 0:02:37.8]} 3... Nc6 {[%clk 0:02:58.6]}
4. exd5 {[%clk 0:02:34.7]} 4... exd5 {[%clk 0:02:58]} 5. Nf3 {[%clk 0:02:35]}
5... Nf6 {[%clk 0:02:57.8]} 6. h3 {[%clk 0:02:32.3]} 6... Bb4 {[%clk 0:02:56.7]}
7. Bg5 {[%clk 0:02:30.5]} 7... h6 {[%clk 0:02:55.3]} 8. Bh4 {[%clk 0:02:28.4]}
8... Bxc3+ {[%clk 0:02:51]} 9. bxc3 {[%clk 0:02:27.6]} 9... Bf5 {[%clk
0:02:51.5]} 10. Bd3 {[%clk 0:02:25.2]} 10... Bxd3 {[%clk 0:02:48.8]} 11. Qxd3
{[%clk 0:02:25.7]} 11... Qd6 {[%clk 0:02:46.9]} 12. O-O {[%clk 0:02:23.9]} 12...
O-O {[%clk 0:02:46.9]} 13. Rfe1 {[%clk 0:02:22]} 13... Rfe8 {[%clk 0:02:45.2]}
14. c4 {[%clk 0:02:20.1]} 14... dxc4 {[%clk 0:02:42.5]} 15. Qxc4 {[%clk
0:02:21]} 15... Ne4 {[%clk 0:02:31.7]} 16. Rab1 {[%clk 0:02:04.7]} 16... g5
{[%clk 0:02:10.3]} 17. Rxe4 {[%clk 0:01:38.3]} 17... Rxe4 {[%clk 0:02:04.3]} 18.
Bxg5 {[%clk 0:01:37.6]} 18... hxg5 {[%clk 0:01:33.5]} 19. Nxg5 {[%clk
0:01:37.6]} 19... Re7 {[%clk 0:01:30.6]} 20. d5 {[%clk 0:01:35.7]} 20... Ne5
{[%clk 0:01:26.7]} 21. Qh4 {[%clk 0:01:29.1]} 21... Qg6 {[%clk 0:01:10.2]} 22.
f4 {[%clk 0:01:18.8]} 22... Nd7 {[%clk 0:00:58.2]} 23. f5 {[%clk 0:00:57.6]}
23... Qxf5 {[%clk 0:00:47.3]} 24. Rf1 {[%clk 0:00:57.3]} 24... Qg6 {[%clk
0:00:45.5]} 25. Rf3 {[%clk 0:00:17.7]} 25... Rae8 {[%clk 0:00:32.7]} 26. Rg3
{[%clk 0:00:17.6]} 26... Re1+ {[%clk 0:00:31.3]} 27. Kh2 {[%clk 0:00:15.3]}
27... Ne5 {[%clk 0:00:12.1]} 28. Nf3 {[%clk 0:00:12.2]} 28... Nxf3+ {[%clk
0:00:11.9]} 29. gxf3 {[%clk 0:00:10.8]} 29... R8e2+ {[%clk 0:00:11.5]} 0-1

[Event "Late-Titled-Tuesday-Blitz-April-02-2024"]
[Site "Chess.com"]
[Date "2024.04.02"]
[Round "4"]
[White "jcibarra"]
[Black "Sanyura"]
[Result "1-0"]
[WhiteElo "2960"]
[BlackElo "2613"]
[TimeControl "180+1"]
[EndTime "14:37:18 PDT"]
[Termination "jcibarra won by resignation"]

1. e4 {[%clk 0:03:00.9]} 1... c5 {[%clk 0:01:19.3]} 2. Nf3 {[%clk 0:02:58.8]}
2... e6 {[%clk 0:01:18.2]} 3. d3 {[%clk 0:02:57]} 3... d5 {[%clk 0:01:17.9]} 4.
Qe2 {[%clk 0:02:57.7]} 4... Nc6 {[%clk 0:01:08.3]} 5. g3 {[%clk 0:02:58.2]} 5...
Nf6 {[%clk 0:01:07.7]} 6. Bg2 {[%clk 0:02:58.6]} 6... Be7 {[%clk 0:01:06.7]} 7.
O-O {[%clk 0:02:59]} 7... O-O {[%clk 0:01:07]} 8. e5 {[%clk 0:02:59.6]} 8... Nd7
{[%clk 0:01:07]} 9. c4 {[%clk 0:03:00.2]} 9... d4 {[%clk 0:01:02.3]} 10. h4
{[%clk 0:02:59.7]} 10... f5 {[%clk 0:00:56.7]} 11. exf6 {[%clk 0:02:59.2]} 11...
Nxf6 {[%clk 0:00:57.3]} 12. Bf4 {[%clk 0:02:43.1]} 12... Bd6 {[%clk 0:00:54]}
13. Bxd6 {[%clk 0:02:30.3]} 13... Qxd6 {[%clk 0:00:54.9]} 14. Nbd2 {[%clk
0:02:30.6]} 14... e5 {[%clk 0:00:54.7]} 15. Ng5 {[%clk 0:02:30.5]} 15... Bf5
{[%clk 0:00:53.7]} 16. Nde4 {[%clk 0:02:25.2]} 16... Qe7 {[%clk 0:00:50.7]} 17.
Rfe1 {[%clk 0:02:19.4]} 17... h6 {[%clk 0:00:45.6]} 18. Nxf6+ {[%clk 0:02:19.4]}
18... Qxf6 {[%clk 0:00:43.2]} 19. Bd5+ {[%clk 0:02:19.8]} 19... Kh8 {[%clk
0:00:42.8]} 20. Ne4 {[%clk 0:02:18.8]} 20... Qg6 {[%clk 0:00:37.1]} 21. Nxc5
{[%clk 0:02:12]} 21... Nb4 {[%clk 0:00:33.4]} 22. Be4 {[%clk 0:02:06.5]} 22...
b6 {[%clk 0:00:26.2]} 23. Bxf5 {[%clk 0:01:57.6]} 23... Rxf5 {[%clk 0:00:27.1]}
24. Ne4 {[%clk 0:01:57]} 24... Raf8 {[%clk 0:00:27.2]} 25. a3 {[%clk 0:01:55.1]}
25... Rxf2 {[%clk 0:00:19.6]} 26. h5 {[%clk 0:01:02.2]} 26... Rxe2 {[%clk
0:00:19.6]} 27. hxg6 {[%clk 0:01:01.7]} 27... Rxe1+ {[%clk 0:00:20.2]} 28. Rxe1
{[%clk 0:01:01.4]} 28... Nxd3 {[%clk 0:00:21.1]} 29. Re2 {[%clk 0:00:59.6]}
29... Nc1 {[%clk 0:00:18.2]} 30. Rh2 {[%clk 0:00:52]} 30... Nd3 {[%clk
0:00:15.3]} 31. b4 {[%clk 0:00:48.7]} 31... Rc8 {[%clk 0:00:13.4]} 32. Nd6
{[%clk 0:00:45.2]} 32... Rc6 {[%clk 0:00:11.5]} 33. Ne4 {[%clk 0:00:22.4]} 33...
Rxg6 {[%clk 0:00:11]} 34. Rd2 {[%clk 0:00:21.4]} 34... Nc1 {[%clk 0:00:11.3]}
35. Rf2 {[%clk 0:00:21]} 35... Kh7 {[%clk 0:00:10.9]} 36. Rf7 {[%clk 0:00:20.9]}
36... Nd3 {[%clk 0:00:10.2]} 37. Rxa7 {[%clk 0:00:20.2]} 37... Rg4 {[%clk
0:00:10.7]} 38. Nf6+ {[%clk 0:00:19.1]} 1-0

[Event "Late-Titled-Tuesday-Blitz-April-02-2024"]
[Site "Chess.com"]
[Date "2024.04.02"]
[Round "4"]
[White "MasterSonnevanck23"]
[Black "Bilan_Danila"]
[Result "1-0"]
[WhiteElo "2403"]
[BlackElo "2568"]
[TimeControl "180+1"]
[EndTime "14:37:18 PDT"]
[Termination "MasterSonnevanck23 won by resignation"]

1. d4 {[%clk 0:03:00.9]} 1... d5 {[%clk 0:02:59.3]} 2. Nf3 {[%clk 0:03:00]} 2...
Nf6 {[%clk 0:02:59.2]} 3. c4 {[%clk 0:02:59.5]} 3... c6 {[%clk 0:02:59.6]} 4. e3
{[%clk 0:02:57.1]} 4... e6 {[%clk 0:02:59.7]} 5. Bd3 {[%clk 0:02:56.2]} 5...
Nbd7 {[%clk 0:02:59.7]} 6. b3 {[%clk 0:02:52.5]} 6... Ne4 {[%clk 0:02:58.6]} 7.
O-O {[%clk 0:02:49.1]} 7... f5 {[%clk 0:02:58.2]} 8. Ba3 {[%clk 0:02:42.8]} 8...
Bxa3 {[%clk 0:02:51]} 9. Nxa3 {[%clk 0:02:42.3]} 9... O-O {[%clk 0:02:51.9]} 10.
Nc2 {[%clk 0:02:38.8]} 10... Qf6 {[%clk 0:02:48.1]} 11. Be2 {[%clk 0:02:30.8]}
11... a5 {[%clk 0:02:36.6]} 12. Nce1 {[%clk 0:02:29.4]} 12... Nc3 {[%clk
0:01:25.7]} 13. Qc2 {[%clk 0:02:24.8]} 13... Nxe2+ {[%clk 0:01:24.2]} 14. Qxe2
{[%clk 0:02:24.7]} 14... a4 {[%clk 0:01:11.9]} 15. Nd3 {[%clk 0:02:22.2]} 15...
b6 {[%clk 0:01:10.4]} 16. Nfe5 {[%clk 0:02:15.4]} 16... Nxe5 {[%clk 0:01:09.6]}
17. Nxe5 {[%clk 0:02:14.5]} 17... c5 {[%clk 0:01:05.7]} 18. Rfe1 {[%clk
0:01:57.3]} 18... Bb7 {[%clk 0:00:36]} 19. Nd7 {[%clk 0:01:53.3]} 19... Qg6
{[%clk 0:00:27]} 20. Nxf8 {[%clk 0:01:52.7]} 20... Rxf8 {[%clk 0:00:25.9]} 21.
cxd5 {[%clk 0:01:45.4]} 21... Bxd5 {[%clk 0:00:23.5]} 22. f3 {[%clk 0:01:45.3]}
22... axb3 {[%clk 0:00:22.2]} 23. axb3 {[%clk 0:01:43.8]} 23... Bxb3 {[%clk
0:00:23.1]} 24. Reb1 {[%clk 0:01:31.4]} 24... Bd5 {[%clk 0:00:12.7]} 25. Rxb6
{[%clk 0:01:26.8]} 25... cxd4 {[%clk 0:00:13.2]} 26. exd4 {[%clk 0:01:23.2]}
26... h6 {[%clk 0:00:13.3]} 27. Re1 {[%clk 0:01:10.3]} 27... Re8 {[%clk
0:00:09.6]} 28. Kh1 {[%clk 0:01:03.5]} 28... Kh7 {[%clk 0:00:09.6]} 29. Qe5
{[%clk 0:00:57.1]} 29... Ra8 {[%clk 0:00:09]} 30. h3 {[%clk 0:00:50.4]} 30...
Ra2 {[%clk 0:00:08.1]} 31. Re2 {[%clk 0:00:38.7]} 31... Ra1+ {[%clk 0:00:04.9]}
32. Kh2 {[%clk 0:00:38.5]} 32... Bxf3 {[%clk 0:00:02.4]} 33. Qxe6 {[%clk
0:00:30.5]} 33... Bxe2 {[%clk 0:00:01.8]} 34. Qxg6+ {[%clk 0:00:29.6]} 1-0

[Event "Late-Titled-Tuesday-Blitz-April-02-2024"]
[Site "Chess.com"]
[Date "2024.04.02"]
[Round "4"]
[White "emeli_chess"]
[Black "shirovin"]
[Result "1-0"]
[WhiteElo "2419"]
[BlackElo "2067"]
[TimeControl "180+1"]
[EndTime "14:37:18 PDT"]
[Termination "emeli_chess won on time"]

1. d4 {[%clk 0:03:00.9]} 1... Nf6 {[%clk 0:02:59]} 2. c4 {[%clk 0:03:00.9]} 2...
e6 {[%clk 0:02:59.5]} 3. Nc3 {[%clk 0:03:01]} 3... Bb4 {[%clk 0:02:58.2]} 4. Qc2
{[%clk 0:03:01.2]} 4... O-O {[%clk 0:02:56]} 5. a3 {[%clk 0:02:58.3]} 5... Bxc3+
{[%clk 0:02:55.9]} 6. Qxc3 {[%clk 0:02:58.7]} 6... d5 {[%clk 0:02:54.2]} 7. Bg5
{[%clk 0:02:53.6]} 7... Nbd7 {[%clk 0:02:52.7]} 8. cxd5 {[%clk 0:02:50.6]} 8...
exd5 {[%clk 0:02:50.1]} 9. e3 {[%clk 0:02:48.4]} 9... h6 {[%clk 0:02:49.1]} 10.
Bh4 {[%clk 0:02:43.5]} 10... c6 {[%clk 0:02:47.5]} 11. Bd3 {[%clk 0:02:41.3]}
11... Re8 {[%clk 0:02:45.1]} 12. Nf3 {[%clk 0:02:33.1]} 12... Nf8 {[%clk
0:02:41.4]} 13. Ne5 {[%clk 0:02:25.4]} 13... Ne4 {[%clk 0:02:13.4]} 14. Bxd8
{[%clk 0:02:14.1]} 14... Nxc3 {[%clk 0:02:12.1]} 15. Bh4 {[%clk 0:01:44.2]}
15... Na4 {[%clk 0:02:08.2]} 16. b3 {[%clk 0:01:40.2]} 16... Nb6 {[%clk
0:02:06.3]} 17. O-O {[%clk 0:01:38.7]} 17... f6 {[%clk 0:01:49.3]} 18. Ng6
{[%clk 0:01:36]} 18... Nxg6 {[%clk 0:01:48.3]} 19. Bxg6 {[%clk 0:01:35.5]} 19...
Re7 {[%clk 0:01:45.7]} 20. Rac1 {[%clk 0:01:31.5]} 20... Nd7 {[%clk 0:01:45]}
21. Bg3 {[%clk 0:01:26]} 21... Nf8 {[%clk 0:01:43.4]} 22. Bd3 {[%clk 0:01:25.1]}
22... Ne6 {[%clk 0:01:33]} 23. b4 {[%clk 0:01:23.2]} 23... a6 {[%clk 0:01:31.8]}
24. a4 {[%clk 0:01:20.2]} 24... Ng5 {[%clk 0:01:25.2]} 25. Bd6 {[%clk
0:01:08.8]} 25... Re8 {[%clk 0:01:22.8]} 26. Bg6 {[%clk 0:01:06.1]} 26... Rd8
{[%clk 0:01:20.9]} 27. Bc7 {[%clk 0:01:01]} 27... Rd7 {[%clk 0:01:20.1]} 28. Bf4
{[%clk 0:00:59.8]} 28... Ne4 {[%clk 0:01:16.9]} 29. Rfd1 {[%clk 0:00:54.7]}
29... Re7 {[%clk 0:01:06.5]} 30. f3 {[%clk 0:00:53.4]} 30... Ng5 {[%clk
0:01:04]} 31. Kf2 {[%clk 0:00:51.5]} 31... Bd7 {[%clk 0:00:59.9]} 32. Bd6 {[%clk
0:00:43.7]} 32... Re6 {[%clk 0:00:59.3]} 33. Bf4 {[%clk 0:00:39.9]} 33... Nf7
{[%clk 0:00:47.5]} 34. Rc3 {[%clk 0:00:33]} 34... Re7 {[%clk 0:00:41.3]} 35. Rb1
{[%clk 0:00:30.8]} 35... b5 {[%clk 0:00:36]} 36. a5 {[%clk 0:00:29.7]} 36... Rb8
{[%clk 0:00:20.8]} 37. Bxb8 {[%clk 0:00:29]} 1-0